fUSD/lending_fUSD_20240502
["ID","MTS","AMOUNT","RATE_DAILY","PERIOD"]
[325262232,1714667498379,-3753.15,0.00036986,7]
[325262233,1714667498389,-3984.23,0.00036986,7]
[325262234,1714667498400,-8648.17,0.00036986,7]
[325262235,1714667498411,-4469.72,0.00036986,7]
[325262236,1714667498421,-500.0,0.00036986,7]
[325262237,1714667498431,-500.0,0.00036986,7]
[325262238,1714667498441,-500.0,0.00036986,7]
[325262239,1714667498450,-3732.49,0.00036986,7]
[325262240,1714667498460,-19076.62,0.00036986,7]
[325262241,1714667498470,-2487.88,0.00036986,7]
[325262242,1714667498480,-544.10907965,0.00036986,7]
[325262243,1714667498490,-3421.27,0.00036986,7]
[325262244,1714667498500,-500.0,0.00036986,7]
[325262245,1714667498509,-1915.66,0.00036986,7]
[325262246,1714667498520,-500.0,0.00036986,7]
[325262247,1714667498529,-500.0,0.00036986,7]
[325262248,1714667498539,-500.0,0.00036986,7]
[325262249,1714667498548,-500.0,0.00036986,7]
[325262250,1714667498558,-4646.14,0.00036986,7]
[325262251,1714667498567,-2114.83,0.00036986,7]
[325262252,1714667498577,-941.51,0.00036986,7]
[325262253,1714667498586,-500.0,0.00036986,7]
[325262254,1714667498595,-7658.48,0.00036986,7]
[325262255,1714667498604,-2426.36,0.00036986,7]
[325262256,1714667498614,-500.0,0.00036986,7]
[325262257,1714667498624,-16953.06,0.00036986,7]
[325262258,1714667498633,-500.0,0.00036986,7]
[325262259,1714667498643,-554.48,0.00036986,7]
[325262260,1714667498652,-500.0,0.00036986,7]
[325262261,1714667498664,-1340.5,0.00036986,7]
[325262262,1714667498674,-6923.65,0.00036986,7]
[325262263,1714667498684,-500.0,0.00036986,7]
[325262264,1714667498694,-2329.58,0.00036986,7]
[325262265,1714667498704,-980.46,0.00036986,7]
[325262266,1714667498713,-500.0,0.00036986,7]
[325262267,1714667498723,-5482.68,0.00036986,7]
[325262268,1714667498732,-2064.64,0.00036986,7]
[325262269,1714667498741,-500.0,0.00036986,7]
[325262270,1714667498751,-4385.88,0.00036986,7]
[325262271,1714667498761,-500.0,0.00036986,7]
[325262272,1714667498770,-500.0,0.00036986,7]
[325262273,1714667498780,-1107.59,0.00036986,7]
[325262274,1714667498790,-500.0,0.00036986,7]
[325262275,1714667498799,-562.61,0.00036986,7]
[325262276,1714667498809,-970.18,0.00036986,7]
[325262277,1714667498818,-2178.69,0.00036986,7]
[325262278,1714667498828,-645.44,0.00036986,7]
[325262279,1714667498838,-500.0,0.00036986,7]
[325262280,1714667498847,-741.44,0.00036986,7]
[325262281,1714667498857,-3864.45,0.00036986,7]
[325262282,1714667498867,-500.0,0.00036986,7]
[325262283,1714667498876,-6949.43,0.00036986,7]
[325262284,1714667498885,-500.0,0.00036986,7]
[325262285,1714667498894,-2176.82,0.00036986,7]
[325262286,1714667498904,-4950.57,0.00036986,7]
[325262287,1714667498915,-500.0,0.00036986,7]
[325262288,1714667498924,-500.0,0.00036986,7]
[325262289,1714667498933,-1075.38,0.00036986,7]
[325262290,1714667498942,-2450.75,0.00036986,7]
[325262291,1714667498952,-2394.49,0.00036986,7]
[325262292,1714667498962,-859.24,0.00036986,7]
[325262293,1714667498971,-500.0,0.00036986,7]
[325262294,1714667498981,-766.3,0.00036986,7]
[325262295,1714667498990,-500.0,0.00036986,7]
[325262296,1714667499000,-500.0,0.00036986,7]
[325262297,1714667499010,-500.0,0.00036986,7]
[325262298,1714667499020,-2392.73,0.00036986,7]
[325262299,1714667499030,-500.0,0.00036986,7]
[325262300,1714667499039,-533.67617829,0.00036986,7]
[325262301,1714667499049,-500.0,0.00036986,7]
[325262302,1714667499059,-500.0,0.00036986,7]
[325262303,1714667499068,-500.0,0.00036986,7]
[325262304,1714667499078,-2382.0,0.00036986,7]
[325262305,1714667499088,-500.0,0.00036986,7]
[325262306,1714667499098,-1941.48,0.00036986,7]
[325262307,1714667499107,-504.34689356,0.00036986,7]
[325262308,1714667499116,-1926.58,0.00036986,7]
[325262309,1714667499126,-500.0,0.00036986,7]
[325262310,1714667499135,-6189.53,0.00036986,7]
[325262311,1714667499144,-500.0,0.00036986,7]
[325262312,1714667499154,-738.84,0.00036986,7]
[325262313,1714667499165,-1399.43,0.00036986,7]
[325262314,1714667499175,-4498.8,0.00036986,7]
[325262315,1714667499185,-500.0,0.00036986,7]
[325262316,1714667499194,-506.66372509,0.00036986,7]
[325262317,1714667499204,-500.0,0.00036986,7]
[325262318,1714667499213,-500.0,0.00036986,7]
[325262319,1714667499223,-6355.14,0.00036986,7]
[325262320,1714667499232,-500.0,0.00036986,7]
[325262321,1714667499241,-1273.4,0.00036986,7]
[325262322,1714667499251,-500.0,0.00036986,7]
[325262323,1714667499268,-500.0,0.00036986,7]
[325262324,1714667499277,-500.0,0.00036986,7]
[325262325,1714667499287,-2103.26,0.00036986,7]
[325262326,1714667499296,-500.0,0.00036986,7]
[325262327,1714667499306,-2173.09,0.00036986,7]
[325262328,1714667499315,-32919.23,0.00036986,7]
[325262329,1714667499325,-1670.97,0.00036986,7]
[325262330,1714667499334,-570.67,0.00036986,7]
[325262331,1714667499346,-1332.14,0.00036986,7]
[325262332,1714667499356,-500.0,0.00036986,7]
[325262333,1714667499365,-1413.27,0.00036986,7]
[325262334,1714667499375,-500.0,0.00036986,7]
[325262335,1714667499384,-500.0,0.00036986,7]
[325262336,1714667499394,-2856.13,0.00036986,7]
[325262337,1714667499403,-500.0,0.00036986,7]
[325262338,1714667499414,-500.0,0.00036986,7]
[325262339,1714667499423,-1301.09,0.00036986,7]
[325262340,1714667499432,-500.0,0.00036986,7]
[325262341,1714667499442,-6418.49,0.00036986,7]
[325262342,1714667499451,-2536.24,0.00036986,7]
[325262343,1714667499460,-3679.72,0.00036986,7]
[325262344,1714667499470,-3878.82,0.00036986,7]
[325262345,1714667499479,-500.0,0.00036986,7]
[325262346,1714667499489,-531.65348047,0.00036986,7]
[325262347,1714667499499,-2705.76,0.00036986,7]
[325262348,1714667499508,-698.11,0.00036986,7]
[325262349,1714667499517,-500.0,0.00036986,7]
[325262350,1714667499526,-500.0,0.00036986,7]
[325262351,1714667499536,-500.0,0.00036986,7]
[325262352,1714667499545,-888.3,0.00036986,7]
[325262353,1714667499555,-11717.04,0.00036986,7]
[325262354,1714667499564,-1042.24,0.00036986,7]
[325262355,1714667499574,-500.0,0.00036986,7]
[325262356,1714667499583,-2464.31,0.00036986,7]
[325262357,1714667499592,-1452.93,0.00036986,7]
[325262358,1714667499602,-500.0,0.00036986,7]
[325262359,1714667499611,-500.0,0.00036986,7]
[325262360,1714667499620,-500.0,0.00036986,7]
[325262361,1714667499629,-500.0,0.00036986,7]
[325262362,1714667499638,-500.0,0.00036986,7]
[325262363,1714667499647,-500.0,0.00036986,7]
[325262364,1714667499657,-500.0,0.00036986,7]
[325262365,1714667499669,-1651.45,0.00036986,7]
[325262366,1714667499679,-1501.49,0.00036986,7]
[325262367,1714667499688,-4025.12,0.00036986,7]
[325262368,1714667499698,-1965.68,0.00036986,7]
[325262369,1714667499707,-500.0,0.00036986,7]
[325262370,1714667499717,-2069.67,0.00036986,7]
[325262371,1714667499729,-500.0,0.00036986,7]
[325262372,1714667499739,-1206.75,0.00036986,7]
[325262373,1714667499748,-6699.88,0.00036986,7]
[325262374,1714667499761,-9805.6,0.00036986,7]
[325262375,1714667499777,-500.0,0.00036986,7]
[325262376,1714667499793,-1232.52,0.00036986,7]
[325262377,1714667499805,-500.0,0.00036986,7]
[325262378,1714667499820,-500.0,0.00036986,7]
[325262379,1714667499835,-510.82,0.00036986,7]
[325262380,1714667499851,-500.0,0.00036986,7]
[325262381,1714667499867,-11018.11,0.00036986,7]
[325262382,1714667499884,-500.0,0.00036986,7]
[325262383,1714667499899,-1021.25,0.00036986,7]
[325262384,1714667499913,-8164.48,0.00036986,7]
[325262385,1714667499927,-500.0,0.00036986,7]
[325262386,1714667499942,-500.0,0.00036986,7]
[325262387,1714667499955,-603.61,0.00036986,7]
[325262388,1714667499966,-500.0,0.00036986,7]
[325262389,1714667499979,-500.0,0.00036986,7]
[325262390,1714667499993,-617.50979422,0.00036986,7]
[325262391,1714667500010,-516.37,0.00036986,7]
[325262392,1714667500025,-500.0,0.00036986,7]
[325262393,1714667500041,-3543.82,0.00036986,7]
[325262394,1714667500055,-895.62,0.00036986,7]
[325262395,1714667500066,-659.04,0.00036986,7]
[325262396,1714667500078,-3513.05,0.00036986,7]
[325262397,1714667500092,-500.0,0.00036986,7]
[325262398,1714667500107,-500.0,0.00036986,7]
[325262399,1714667500120,-1065.94,0.00036986,7]
[325262400,1714667500134,-500.0,0.00036986,7]
[325262401,1714667500150,-3257.68,0.00036986,7]
[325262402,1714667500167,-5887.11,0.00036986,7]
[325262403,1714667500180,-500.0,0.00036986,7]
[325262404,1714667500198,-986.23,0.00036986,7]
[325262405,1714667500213,-500.0,0.00036986,7]
[325262406,1714667500227,-500.0,0.00036986,7]
[325262407,1714667500242,-730.33,0.00036986,7]
[325262408,1714667500256,-568.72639361,0.00036986,2]
[325262409,1714667500271,-7424.77,0.00036986,7]
[325262410,1714667500286,-9848.89,0.00036986,7]
[325262411,1714667500299,-500.0,0.00036986,7]
[325262412,1714667500313,-500.0,0.00036986,7]
[325262413,1714667500326,-6254.95,0.00036986,7]
[325262414,1714667500338,-500.0,0.00036986,7]
[325262415,1714667500352,-781.36,0.00036986,7]
[325262416,1714667500365,-500.0,0.00036986,7]
[325262417,1714667500377,-500.0,0.00036986,7]
[325262418,1714667500390,-976.04,0.00036986,7]
[325262419,1714667500403,-500.0,0.00036986,7]
[325262420,1714667500417,-500.0,0.00036986,7]
[325262421,1714667500429,-2897.55,0.00036986,7]
[325262422,1714667500441,-500.0,0.00036986,7]
[325262423,1714667500455,-500.0,0.00036986,7]
[325262424,1714667500468,-500.0,0.00036986,2]
[325262425,1714667500481,-500.0,0.00036986,7]
[325262426,1714667500494,-310.54908934,0.00036986,7]
[325262427,1714667500506,-570.14,0.00036986,7]
[325262428,1714667500518,-500.0,0.00036986,7]
[325262429,1714667500530,-1024.92,0.00036986,7]
[325262430,1714667500542,-6491.33,0.00036986,7]
[325262431,1714667500554,-500.0,0.00036986,7]
[325262432,1714667500567,-590.44,0.00036986,7]
[325262433,1714667500579,-525.07827184,0.00036986,7]
[325262434,1714667500592,-1478.92,0.00036986,7]
[325262435,1714667500604,-500.0,0.00036986,7]
[325262436,1714667500616,-500.0,0.00036986,7]
[325262437,1714667500629,-968.38,0.00036986,7]
[325262438,1714667500642,-500.0,0.00036986,7]
[325262439,1714667500654,-500.0,0.00036986,7]
[325262440,1714667500672,-19442.09,0.00036986,7]
[325262441,1714667500684,-500.0,0.00036986,7]
[325262442,1714667500697,-1001.86,0.00036986,7]
[325262443,1714667500711,-2952.1,0.00036986,7]
[325262444,1714667500724,-819.54,0.00036986,7]
[325262445,1714667500736,-500.0,0.00036986,7]
[325262446,1714667500749,-3059.94,0.00036986,7]
[325262447,1714667500764,-795.07,0.00036986,7]
[325262448,1714667500777,-500.0,0.00036986,7]
[325262449,1714667500790,-500.0,0.00036986,7]
[325262450,1714667500803,-500.0,0.00036986,7]
[325262451,1714667500816,-3463.21,0.00036986,7]
[325262452,1714667500828,-13279.58,0.00036986,7]
[325262453,1714667500841,-503.42367382,0.00036986,7]
[325262454,1714667500853,-500.0,0.00036986,7]
[325262455,1714667500865,-500.0,0.00036986,7]
[325262456,1714667500876,-1076.26,0.00036986,7]
[325262457,1714667500889,-18209.22,0.00036986,7]
[325262458,1714667500901,-7110.62,0.00036986,7]
[325262459,1714667500914,-500.0,0.00036986,7]
[325262460,1714667500925,-565.04,0.00036986,7]
[325262461,1714667500936,-500.0,0.00036986,7]
[325262462,1714667500948,-500.0,0.00036986,7]
[325262463,1714667500959,-500.0,0.00036986,7]
[325262464,1714667500972,-500.0,0.00036986,7]
[325262465,1714667500985,-500.0,0.00036986,7]
[325262466,1714667500996,-6540.09729539,0.00036987,10]
[325262467,1714667501009,-50000.0,0.00037,27]
[325262468,1714667501021,-50000.0,0.00037,17]
[325262469,1714667501033,-5000.0,0.00037,21]
[325262470,1714667501044,-1203.0,0.00037,12]
[325262471,1714667501056,-4443.0,0.00037,60]
[325262472,1714667501068,-146747.66,0.00037036,6]
[325262473,1714667501081,-200414.29,0.00037036,6]
[325262474,1714667501093,-11888.44,0.00037036,6]
[325262475,1714667501105,-39673.92,0.00037036,6]
[325262476,1714667501116,-65478.18,0.00037036,6]
[325262477,1714667501128,-54684.38,0.00037036,6]
[325262478,1714667501141,-33716.63,0.00037036,6]
[325262479,1714667501152,-11083.18,0.00037036,6]
[325262480,1714667501168,-16119.79,0.00037085,6]
[325262481,1714667501180,-33071.28,0.00037085,6]
[325262482,1714667501191,-24226.8,0.00037085,6]
[325262483,1714667501203,-56176.01,0.00037085,6]
[325262484,1714667501214,-5585.49,0.00037085,6]
[325262485,1714667501226,-62287.59,0.00037085,6]
[325262486,1714667501238,-175.8,0.000371,7]
[325262487,1714667501250,-3950.25146337,0.00037112,10]
[325262488,1714667501266,-308.76784163,0.00037152,2]
[325262489,1714667501277,-157.43409885,0.0003716,2]
[325262490,1714667501289,-1622.42793312,0.00037181,2]
[325262491,1714667501302,-1500.0,0.00037194,2]
[325262492,1714667501314,-1500.0,0.00037239,2]
[325262493,1714667501325,-500.0,0.0003726,7]
[325262494,1714667501339,-500.0,0.0003726,7]
[325262495,1714667501350,-159.46377455,0.0003726,7]
[325262496,1714667501362,-500.0,0.0003726,7]
[325262497,1714667501374,-500.0,0.0003726,7]
[325262498,1714667501386,-467.69872917,0.0003726,7]
[325262499,1714667501398,-500.0,0.0003726,7]
[325262500,1714667501410,-503.75794463,0.0003726,7]
[325262501,1714667501422,-612.35196976,0.0003726,7]
[325262502,1714667501434,-500.0,0.0003726,7]
[325262503,1714667501446,-500.0,0.0003726,7]
[325262504,1714667501457,-500.0,0.0003726,7]
[325262505,1714667501469,-500.0,0.0003726,7]
[325262506,1714667501480,-400.40335422,0.0003726,7]
[325262507,1714667501491,-500.0,0.0003726,7]
[325262508,1714667501503,-500.0,0.0003726,7]
[325262509,1714667501515,-501.42867605,0.0003726,7]
[325262510,1714667501526,-509.9610143,0.0003726,7]
[325262511,1714667501538,-712.36,0.0003726,7]
[325262512,1714667501549,-500.0,0.0003726,7]
[325262513,1714667501560,-500.0,0.0003726,7]
[325262514,1714667501572,-500.0,0.0003726,7]
[325262515,1714667501583,-500.0,0.0003726,7]
[325262516,1714667501594,-500.0,0.0003726,7]
[325262517,1714667501605,-510.14,0.0003726,7]
[325262518,1714667501616,-500.0,0.0003726,7]
[325262519,1714667501627,-500.0,0.0003726,7]
[325262520,1714667501638,-644.34,0.0003726,7]
[325262521,1714667501649,-500.0,0.0003726,7]
[325262522,1714667501662,-500.56,0.0003726,7]
[325262523,1714667501672,-548.1,0.0003726,7]
[325262524,1714667501684,-500.0,0.0003726,7]
[325262525,1714667501696,-578.3142612,0.0003726,7]
[325262526,1714667501707,-500.0,0.0003726,7]
[325262527,1714667501718,-500.0,0.0003726,7]
[325262528,1714667501731,-509.60771266,0.0003726,7]
[325262529,1714667501743,-607.02,0.0003726,7]
[325262530,1714667501755,-684.9,0.0003726,7]
[325262531,1714667501766,-500.0,0.0003726,7]
[325262532,1714667501777,-500.0,0.0003726,7]
[325262533,1714667501789,-500.0,0.0003726,7]
[325262534,1714667501801,-500.0,0.0003726,7]
[325262535,1714667501812,-500.0,0.0003726,7]
[325262536,1714667501824,-515.24439147,0.0003726,7]
[325262537,1714667501836,-500.0,0.0003726,7]
[325262538,1714667501847,-500.0,0.0003726,7]
[325262539,1714667501858,-549.89,0.0003726,7]
[325262540,1714667501870,-500.0,0.0003726,7]
[325262541,1714667501881,-500.0,0.0003726,7]
[325262542,1714667501892,-500.0,0.0003726,7]
[325262543,1714667501903,-500.0,0.0003726,7]
[325262544,1714667501915,-500.0,0.0003726,7]
[325262545,1714667501927,-500.0,0.0003726,7]
[325262546,1714667501938,-500.0,0.0003726,7]
[325262547,1714667501949,-505.17,0.0003726,2]
[325262548,1714667501962,-609.55,0.0003726,7]
[325262549,1714667501972,-500.0,0.0003726,7]
[325262550,1714667501985,-500.0,0.0003726,7]
[325262551,1714667501995,-500.0,0.0003726,7]
[325262552,1714667502006,-500.0,0.0003726,7]
[325262553,1714667502018,-719.24,0.0003726,7]
[325262554,1714667502029,-500.0,0.0003726,7]
[325262555,1714667502040,-500.0,0.0003726,7]
[325262556,1714667502051,-500.0,0.0003726,7]
[325262557,1714667502061,-500.0,0.0003726,7]
[325262558,1714667502072,-500.0,0.0003726,7]
[325262559,1714667502083,-500.0,0.0003726,7]
[325262560,1714667502094,-500.0,0.0003726,7]
[325262561,1714667502104,-500.0,0.0003726,7]
[325262562,1714667502115,-500.0,0.0003726,7]
[325262563,1714667502127,-500.0,0.0003726,7]
[325262564,1714667502138,-500.0,0.0003726,7]
[325262565,1714667502154,-500.0,0.0003726,7]
[325262566,1714667502166,-500.0,0.0003726,7]
[325262567,1714667502177,-500.0,0.0003726,7]
[325262568,1714667502187,-500.0,0.0003726,7]
[325262569,1714667502199,-500.0,0.0003726,7]
[325262570,1714667502210,-500.0,0.0003726,7]
[325262571,1714667502221,-500.0,0.0003726,7]
[325262572,1714667502232,-500.0,0.0003726,7]
[325262573,1714667502243,-500.0,0.0003726,7]
[325262574,1714667502255,-849.68,0.0003726,7]
[325262575,1714667502267,-500.0,0.0003726,7]
[325262576,1714667502282,-500.0,0.0003726,7]
[325262577,1714667502293,-500.0,0.0003726,7]
[325262578,1714667502304,-500.0,0.0003726,7]
[325262579,1714667502314,-914.78,0.0003726,7]
[325262580,1714667502326,-500.0,0.0003726,7]
[325262581,1714667502337,-500.0,0.0003726,7]
[325262582,1714667502350,-500.0,0.0003726,7]
[325262583,1714667502361,-527.16,0.0003726,7]
[325262584,1714667502372,-500.0,0.0003726,7]
[325262585,1714667502383,-574.3,0.0003726,7]
[325262586,1714667502394,-993.52,0.0003726,7]
[325262587,1714667502406,-500.0,0.0003726,7]
[325262588,1714667502418,-500.0,0.0003726,7]
[325262589,1714667502429,-500.0,0.0003726,7]
[325262590,1714667502440,-596.19,0.0003726,7]
[325262591,1714667502452,-745.05,0.0003726,7]
[325262592,1714667502464,-566.11,0.0003726,7]
[325262593,1714667502475,-519.64253485,0.0003726,7]
[325262594,1714667502487,-500.0,0.0003726,7]
[325262595,1714667502499,-515.20155364,0.0003726,7]
[325262596,1714667502510,-500.0,0.0003726,7]
[325262597,1714667502521,-514.67138486,0.0003726,7]
[325262598,1714667502532,-500.0,0.0003726,7]
[325262599,1714667502544,-500.0,0.0003726,7]
[325262600,1714667502555,-500.0,0.0003726,7]
[325262601,1714667502567,-520.26799913,0.0003726,7]
[325262602,1714667502578,-500.0,0.0003726,7]
[325262603,1714667502589,-500.0,0.0003726,7]
[325262604,1714667502600,-500.0,0.0003726,7]
[325262605,1714667502611,-500.0,0.0003726,7]
[325262606,1714667502623,-500.0,0.0003726,7]
[325262607,1714667502635,-959.3,0.0003726,7]
[325262608,1714667502647,-500.0,0.0003726,7]
[325262609,1714667502659,-500.0,0.0003726,7]
[325262610,1714667502675,-500.0,0.0003726,7]
[325262611,1714667502687,-627.09,0.0003726,7]
[325262612,1714667502700,-1141.64864623,0.0003726,7]
[325262613,1714667502712,-500.0,0.0003726,7]
[325262614,1714667502725,-500.0,0.0003726,7]
[325262615,1714667502738,-500.0,0.0003726,7]
[325262616,1714667503215,-500.0,0.0003726,7]
[325262617,1714667503225,-500.0,0.0003726,7]
[325262618,1714667503235,-500.0,0.0003726,7]
[325262619,1714667503244,-500.0,0.0003726,7]
[325262620,1714667503253,-500.0,0.0003726,7]
[325262621,1714667503270,-755.19,0.0003726,7]
[325262622,1714667503279,-500.0,0.0003726,7]
[325262623,1714667503288,-500.0,0.0003726,7]
[325262624,1714667503298,-169.12119803,0.0003726,7]
[325262625,1714667503308,-500.0,0.0003726,7]
[325262626,1714667503318,-500.0,0.0003726,7]
[325262627,1714667503327,-500.0,0.0003726,7]
[325262628,1714667503337,-845.46,0.0003726,7]
[325262629,1714667503346,-500.0,0.0003726,7]
[325262630,1714667503355,-500.0,0.0003726,7]
[325262631,1714667503365,-500.0,0.0003726,7]
[325262632,1714667503374,-500.0,0.0003726,7]
[325262633,1714667503384,-500.0,0.0003726,7]
[325262634,1714667503394,-500.0,0.0003726,7]
[325262635,1714667503403,-500.0,0.0003726,7]
[325262636,1714667503412,-500.0,0.0003726,7]
[325262637,1714667503424,-500.0,0.0003726,7]
[325262638,1714667503433,-500.0,0.0003726,7]
[325262639,1714667503442,-500.0,0.0003726,7]
[325262640,1714667503451,-500.0,0.0003726,7]
[325262641,1714667503459,-500.0,0.0003726,7]
[325262642,1714667503468,-500.0,0.0003726,7]
[325262643,1714667503478,-500.0,0.0003726,7]
[325262644,1714667503487,-500.0,0.0003726,7]
[325262645,1714667503496,-500.0,0.0003726,7]
[325262646,1714667503506,-500.0,0.0003726,7]
[325262647,1714667503515,-500.0,0.0003726,7]
[325262648,1714667503524,-611.89,0.0003726,7]
[325262649,1714667503533,-644.39,0.0003726,7]
[325262650,1714667503543,-615.29,0.0003726,7]
[325262651,1714667503552,-1140.87,0.0003726,7]
[325262652,1714667503562,-500.0,0.0003726,7]
[325262653,1714667503572,-500.0,0.0003726,7]
[325262654,1714667503581,-549.9,0.0003726,7]
[325262655,1714667503591,-500.0,0.0003726,7]
[325262656,1714667503600,-770.62,0.0003726,7]
[325262657,1714667503609,-330.34484828,0.0003726,7]
[325262658,1714667503620,-500.0,0.0003726,7]
[325262659,1714667503629,-500.0,0.0003726,7]
[325262660,1714667503639,-500.0,0.0003726,7]
[325262661,1714667503648,-500.0,0.0003726,7]
[325262662,1714667503658,-500.0,0.0003726,7]
[325262663,1714667503670,-500.0,0.0003726,7]
[325262664,1714667503679,-500.0,0.0003726,7]
[325262665,1714667503688,-500.0,0.0003726,7]
[325262666,1714667503697,-340.41807212,0.0003726,7]
[325262667,1714667503707,-836.15,0.0003726,7]
[325262668,1714667503716,-500.0,0.0003726,7]
[325262669,1714667503725,-500.0,0.0003726,7]
[325262670,1714667503735,-500.0,0.0003726,7]
[325262671,1714667503745,-727.61,0.0003726,7]
[325262672,1714667503755,-500.0,0.0003726,7]
[325262673,1714667503765,-500.0,0.0003726,7]
[325262674,1714667503775,-1025.66,0.0003726,7]
[325262675,1714667503785,-500.0,0.0003726,7]
[325262676,1714667503794,-500.0,0.0003726,7]
[325262677,1714667503804,-500.0,0.0003726,7]
[325262678,1714667503814,-500.0,0.0003726,7]
[325262679,1714667503824,-500.0,0.0003726,7]
[325262680,1714667503834,-511.65538397,0.0003726,7]
[325262681,1714667503844,-500.0,0.0003726,7]
[325262682,1714667503854,-500.0,0.0003726,7]
[325262683,1714667503864,-500.0,0.0003726,7]
[325262684,1714667503873,-1147.41,0.0003726,7]
[325262685,1714667503883,-500.0,0.0003726,7]
[325262686,1714667503892,-508.64212493,0.0003726,7]
[325262687,1714667503901,-500.0,0.0003726,2]
[325262688,1714667503911,-500.0,0.0003726,7]
[325262689,1714667503923,-500.0,0.0003726,7]
[325262690,1714667503932,-500.0,0.0003726,7]
[325262691,1714667503941,-500.0,0.0003726,7]
[325262692,1714667503950,-500.0,0.0003726,7]
[325262693,1714667503959,-500.0,0.0003726,7]
[325262694,1714667503968,-500.0,0.0003726,7]
[325262695,1714667503978,-500.0,0.0003726,7]
[325262696,1714667503987,-500.0,0.0003726,7]
[325262697,1714667503996,-500.0,0.0003726,7]
[325262698,1714667504006,-512.22841142,0.0003726,7]
[325262699,1714667504016,-500.0,0.0003726,7]
[325262700,1714667504026,-500.0,0.0003726,7]
[325262701,1714667504035,-583.1,0.0003726,7]
[325262702,1714667504045,-921.28,0.0003726,7]
[325262703,1714667504056,-500.0,0.0003726,7]
[325262704,1714667504066,-500.0,0.0003726,7]
[325262705,1714667504075,-500.0,0.0003726,7]
[325262706,1714667504084,-500.0,0.0003726,7]
[325262707,1714667504093,-551.41,0.0003726,7]
[325262708,1714667504102,-500.0,0.0003726,7]
[325262709,1714667504112,-769.1,0.0003726,7]
[325262710,1714667504124,-500.0,0.0003726,7]
[325262711,1714667504133,-150.0,0.0003726,7]
[325262712,1714667504142,-724.19,0.0003726,7]
[325262713,1714667504151,-500.0,0.0003726,7]
[325262714,1714667504161,-500.0,0.0003726,7]
[325262715,1714667504172,-500.0,0.0003726,7]
[325262716,1714667504181,-500.0,0.0003726,7]
[325262717,1714667504190,-516.25,0.0003726,7]
[325262718,1714667504200,-500.0,0.0003726,7]
[325262719,1714667504210,-500.0,0.0003726,7]
[325262720,1714667504219,-500.0,0.0003726,7]
[325262721,1714667504229,-500.0,0.0003726,7]
[325262722,1714667504238,-973.87,0.0003726,7]
[325262723,1714667504247,-500.0,0.0003726,7]
[325262724,1714667504258,-500.0,0.0003726,7]
[325262725,1714667504268,-500.0,0.0003726,7]
[325262726,1714667504277,-716.47,0.0003726,7]
[325262727,1714667504290,-500.0,0.0003726,7]
[325262728,1714667504300,-500.0,0.0003726,7]
[325262729,1714667504309,-155.29265283,0.0003726,7]
[325262730,1714667504318,-561.51,0.0003726,7]
[325262731,1714667504329,-500.0,0.0003726,7]